bitfinex/quotes_ETHUSD_20250827
["timestamp","ask_amount","ask_price","bid_price","bid_amount"]
[1756330096346,3.51651511,4570.3,4570.2,0.001]
[1756330096549,7.37051511,4570.3,4570.2,0.001]
[1756330096735,7.34854115,4570.3,4570.2,0.001]
[1756330097136,3.0,4570.2,4569.8,1e-08]
[1756330097381,5.18823168,4569.9,4569.8,1e-08]
[1756330097584,5.60883168,4569.9,4569.8,1e-08]
[1756330097736,6.06623168,4569.9,4569.8,1e-08]
[1756330097935,2.18871063,4568.9,4568.8,0.02]
[1756330098240,2.29831063,4568.9,4568.8,0.02]
[1756330098472,0.1096,4568.9,4568.8,0.02]
[1756330100397,3.06671063,4568.9,4568.8,0.02]
[1756330101115,3.08868459,4568.9,4568.8,0.02]
[1756330102083,6.08868459,4568.9,4568.8,0.02]
[1756330102277,7.27994564,4568.9,4568.8,0.02]
[1756330103106,2.18918978,4567.9,4567.8,0.02]
[1756330103412,2.21116374,4567.9,4567.8,0.02]
[1756330103623,2.97956374,4567.9,4567.8,0.02]
[1756330103906,2.18966914,4566.9,4566.8,0.02]
[1756330104111,2.2116431,4566.9,4566.8,0.02]
[1756330104283,2.3212431,4566.9,4566.8,0.02]
[1756330108430,3.9261272,4566.9,4566.8,0.02]
[1756330110359,2.29926914,4566.9,4566.8,0.02]
[1756330110948,0.1096,4566.9,4566.8,0.02]
[1756330111157,2.29926914,4566.9,4566.8,0.02]
[1756330112216,2.61026914,4566.9,4566.8,0.02]
[1756330112542,3.06766914,4566.9,4566.8,0.02]
[1756330112860,3.99956835,4566.9,4566.8,0.02]
[1756330113166,3.99956835,4566.9,4566.8,0.021]
[1756330113522,2.29926914,4566.9,4566.8,0.3216]
[1756330113736,2.29926914,4566.9,4566.8,0.021]
[1756330113937,0.1096,4566.9,4566.8,0.021]
[1756330114275,0.1096,4566.9,4566.8,1.1136]
[1756330114592,0.1096,4566.9,4566.8,1.5797]
[1756330115855,0.1096,4566.9,4566.8,0.021]
[1756330116058,0.1096,4566.9,4566.8,0.3216]
[1756330117747,2.29926914,4566.9,4566.8,0.3216]
[1756330117959,0.1096,4566.9,4566.8,0.3216]
[1756330122470,0.1096,4566.9,4566.8,0.021]
[1756330122669,2.29926914,4566.9,4566.8,0.021]
[1756330123278,0.1096,4566.9,4566.8,1.1136]
[1756330124068,2.29926914,4566.9,4566.8,1.1136]
[1756330124260,0.1096,4566.9,4566.8,1.1136]
[1756330124792,2.29926914,4566.9,4566.8,1.1136]
[1756330125086,0.1096,4566.9,4566.8,1.1136]
[1756330125653,2.29926914,4566.9,4566.8,1.1136]
[1756330126094,0.1096,4566.9,4566.8,1.1136]
[1756330127691,2.29926914,4566.9,4566.8,1.1136]
[1756330127889,0.1096,4566.9,4566.8,1.1136]
[1756330128192,2.29926914,4566.9,4566.8,1.1136]
[1756330128392,2.29926914,4566.9,4566.8,0.813]
[1756330128599,3.4627547,4566.9,4566.8,0.021]
[1756330128795,3.48472866,4566.9,4566.8,0.021]
[1756330129295,2.18990889,4566.4,4566.3,0.001]
[1756330129455,6.13948285,4566.4,4566.3,0.001]
[1756330129657,10.96504128,4566.4,4566.3,0.001]
[1756330133662,10.53714128,4566.4,4566.3,0.001]
[1756330134188,10.96504128,4566.4,4566.3,0.001]
[1756330134389,5.34723239,4566.4,4566.3,0.001]
[1756330134693,3.815,4567.2,4566.4,0.792]
[1756330135011,0.1096,4566.5,4566.4,2.98190889]
[1756330135178,0.1096,4566.5,4566.4,3.43830889]
[1756330135367,0.1096,4566.5,4566.4,3.72680889]
[1756330135568,3.815,4567.2,4566.7,0.792]
[1756330135791,0.1096,4566.8,4566.7,0.792]
[1756330136095,0.1096,4566.8,4566.7,2.98176503]
[1756330136312,0.022,4567.8,4567.2,0.792]
[1756330136673,0.022,4567.8,4567.7,3.26978563]
[1756330137202,0.022,4567.8,4567.7,4.27210148]
[1756330137405,0.022,4567.8,4567.7,3.72618563]
[1756330140170,0.022,4567.8,4567.7,1.0805]
[1756330140402,0.4183,4567.8,4567.1,1.684]
[1756330140610,0.1096,4567.5,4567.4,0.792]
[1756330140907,0.1096,4567.5,4567.4,3.26992943]
[1756330141473,0.1096,4567.5,4567.4,1.0805]
[1756330141673,0.1096,4567.5,4567.4,3.26992943]
[1756330141880,0.1096,4567.7,4567.4,0.78389294]
[1756330142076,0.1096,4567.7,4567.2,0.792]
[1756330142415,0.2867,4567.3,4566.3,1.685]
[1756330142569,0.3963,4567.3,4566.7,3.812]
[1756330142769,0.1096,4566.9,4566.5,0.792]
[1756330143008,0.1096,4566.9,4566.5,2.98185757]
[1756330143206,0.1096,4566.9,4566.4,3.812]
[1756330143374,0.1096,4566.9,4566.4,6.0019033]
[1756330143573,0.1096,4566.9,4566.5,0.792]
[1756330144208,0.1096,4566.9,4566.8,0.2885]
[1756330144519,2.21124115,4567.8,4566.9,0.792]
[1756330144671,0.1096,4567.3,4566.9,2.98165918]
[1756330144873,0.1096,4567.3,4567.2,0.2885]
[1756330145609,0.1096,4567.3,4567.2,1.0805]
[1756330146965,0.1096,4567.3,4567.2,0.792]
[1756330147169,2.29907737,4567.3,4567.2,0.792]
[1756330147368,0.1096,4567.3,4567.2,0.792]
[1756330148404,0.1096,4567.3,4567.2,1.0805]
[1756330148734,0.022,4567.8,4567.3,0.792]
[1756330149006,0.022,4567.8,4567.7,3.37938563]
[1756330149209,0.022,4567.8,4567.7,3.40127848]
[1756330149374,0.022,4567.8,4567.7,3.85767848]
[1756330149709,1e-08,4567.8,4567.7,6.85767848]
[1756330149891,1e-08,4568.3,4568.2,5.98104601]
[1756330150096,1e-08,4568.3,4568.2,11.59164601]
[1756330150286,1e-08,4568.3,4568.2,12.33654601]
[1756330154299,1e-08,4568.3,4568.2,8.51954601]
[1756330154605,1e-08,4568.3,4568.2,13.3251835]
[1756330155030,1e-08,4568.3,4568.2,9.5131835]
[1756330155242,1e-08,4568.3,4568.2,13.3241835]
[1756330155419,1e-08,4568.3,4568.2,12.0757835]
[1756330155743,1e-08,4568.3,4568.2,12.8677835]
[1756330157733,1e-08,4568.3,4568.2,9.0567835]
[1756330157926,1e-08,4568.3,4568.2,12.8677835]
[1756330159639,0.74250001,4568.3,4568.2,3.98264601]
[1756330159941,0.74250001,4568.3,4568.2,8.6046]
[1756330160140,0.74250001,4568.3,4568.2,3.811]
[1756330160548,0.74250001,4568.3,4568.2,4.603]
[1756330162634,0.74250001,4568.3,4568.2,4.602]
[1756330165347,0.74250001,4568.3,4568.2,0.792]
[1756330165653,0.74250001,4568.3,4568.2,4.602]
[1756330169158,0.74250001,4568.3,4568.2,0.792]
[1756330169470,0.74250001,4568.3,4568.2,4.602]
[1756330169471,3.23560725,4568.3,4568.2,4.602]
[1756330169642,3.23560725,4568.3,4568.2,0.792]
[1756330178962,2.18904601,4568.2,4568.1,0.001]
[1756330179164,2.32061997,4568.2,4568.1,0.001]
[1756330179362,4.21863335,4568.2,4568.1,0.001]
[1756330181836,7.21863335,4568.2,4568.1,0.001]
[1756330182159,7.19665939,4568.2,4568.1,0.001]
[1756330182970,2.1892377,4567.8,4567.7,0.001]
[1756330183268,10.16865238,4567.8,4567.7,0.001]
[1756330183586,5.18928563,4567.7,4567.6,1e-08]
[1756330184084,5.93178563,4567.7,4567.6,1e-08]
[1756330188486,1.15551338,4568.2,4567.6,0.74540001]
[1756330188793,2.18928563,4567.7,4567.6,1.53740001]
[1756330189891,2.18928563,4567.7,4567.6,1.08790001]
[1756330190094,2.18928563,4567.7,4567.6,0.29590001]
[1756330190252,2.18924679,4567.8,4567.6,0.29590001]
[1756330190458,2.18924679,4567.8,4567.6,0.74540001]
[1756330190758,2.18928563,4567.7,4567.6,1.53740001]
[1756330191386,2.18928563,4567.7,4567.6,1.08790001]
[1756330192017,2.93433429,4567.7,4567.6,1e-08]
[1756330192217,2.93433429,4567.7,4567.6,0.29590001]
[1756330192218,2.62713429,4567.7,4567.6,0.29590001]
[1756330193024,2.62713429,4567.7,4567.6,1e-08]
[1756330193521,2.62713429,4567.7,4567.6,0.29590001]
[1756330193818,2.18928563,4567.7,4567.6,0.29590001]
[1756330194020,2.18928563,4567.7,4567.6,1e-08]
[1756330195618,2.18928563,4567.7,4567.6,0.29590001]
[1756330197089,2.18928563,4567.7,4567.6,1e-08]
[1756330197287,2.49648563,4567.7,4567.6,1e-08]
[1756330197630,4.00387568,4567.7,4567.6,1e-08]
[1756330198090,7.81287568,4567.7,4567.6,1e-08]
[1756330198290,7.79090172,4567.7,4567.6,1e-08]
[1756330198496,7.90050172,4567.7,4567.6,1e-08]
[1756330200246,7.90250172,4567.7,4567.6,1e-08]
[1756330200544,10.90250172,4567.7,4567.6,1e-08]
[1756330202128,10.90250172,4567.7,4567.6,0.29590001]
[1756330202129,2.39283306,4567.7,4567.6,0.29590001]
[1756330202330,2.50243306,4567.7,4567.6,0.29590001]
[1756330202507,2.30088563,4567.7,4567.6,0.29590001]
[1756330202708,0.1116,4567.7,4567.6,1.53740001]
[1756330203226,2.30088563,4567.7,4567.6,1.53740001]
[1756330203407,2.30088563,4567.7,4567.6,0.29590001]
[1756330203607,3.13069568,4567.7,4567.6,0.29590001]
[1756330203807,2.30088563,4567.7,4567.6,0.29590001]
[1756330204225,0.1116,4567.7,4567.6,0.74540001]
[1756330204458,2.30088563,4567.7,4567.6,0.74540001]
[1756330204827,2.30088563,4567.7,4567.6,1.53740001]
[1756330205326,2.50259601,4567.7,4567.6,1.53740001]
[1756330205526,2.50259601,4567.7,4567.6,1.08790001]
[1756330207543,2.50269658,4567.7,4567.6,0.79200001]
[1756330207759,7.52147563,4567.7,4567.6,1e-08]
[1756330211331,10.52147563,4567.7,4567.6,1e-08]
[1756330211672,2.18947737,4567.3,4567.1,1e-08]
[1756330211971,11.53285796,4567.2,4567.1,1e-08]
[1756330212185,11.29913626,4567.2,4567.1,1e-08]
[1756330212383,12.07628523,4567.2,4567.1,1e-08]
[1756330212869,2.18966914,4566.9,4566.8,1e-08]
[1756330213053,16.37045405,4566.9,4566.8,1e-08]
[1756330213365,2.18976503,4566.7,4566.6,1e-08]
[1756330213552,9.22054994,4566.7,4566.6,1e-08]
[1756330213733,10.04977598,4566.7,4566.6,1e-08]
[1756330214134,10.19074717,4566.7,4566.6,1e-08]
[1756330214345,10.39242535,4566.7,4566.6,1e-08]
[1756330214533,12.53568053,4566.7,4566.6,1e-08]
[1756330215336,11.79408053,4566.7,4566.6,1e-08]
[1756330215543,6.19844321,4566.7,4566.6,0.74540001]
[1756330215749,6.30804321,4566.7,4566.6,0.74540001]
[1756330215946,2.50104321,4566.7,4566.6,0.74540001]
[1756330216150,3.807,4567.1,4566.7,0.792]
[1756330216336,2.18957325,4567.1,4567.0,1.0879]
[1756330216671,0.1096,4567.1,4567.0,1.5242]
[1756330216853,2.29917325,4567.1,4567.0,1.5242]
[1756330217257,0.1096,4567.1,4567.0,1.5242]
[1756330217960,2.29917325,4567.1,4567.0,1.5242]
[1756330218142,0.1096,4567.1,4567.0,1.5242]
[1756330218774,3.807,4567.4,4567.0,1.5242]
[1756330218775,0.1096,4567.4,4567.1,0.792]
[1756330219072,0.1096,4567.6,4567.5,2.98138149]
[1756330219367,0.1096,4567.6,4567.5,5.41248149]
[1756330219570,0.1096,4567.6,4567.5,6.17267604]
[1756330219739,0.002,4567.7,4567.6,2.98133356]
[1756330219940,0.002,4567.7,4567.6,3.41763356]
[1756330220139,0.002,4567.7,4567.6,1.5391]
[1756330220567,0.002,4567.7,4567.6,3.72843356]
[1756330220739,0.002,4567.7,4567.6,4.49957828]
[1756330221131,0.002,4567.7,4567.6,2.31024472]
[1756330222165,0.002,4567.7,4567.6,4.49957828]
[1756330222472,0.002,4567.7,4567.6,2.31024472]
[1756330222645,0.002,4567.7,4567.6,4.49957828]
[1756330223498,0.002,4567.7,4567.6,7.71690601]
[1756330223641,1e-08,4567.8,4567.7,5.98128563]
[1756330223979,1e-08,4567.8,4567.7,8.56084081]
[1756330224178,1e-08,4567.8,4567.7,8.87164081]
[1756330224851,0.002,4568.2,4568.0,0.792]
[1756330225078,0.002,4568.2,4568.1,7.61889093]
[1756330225277,0.002,4568.7,4568.5,0.792]
[1756330225572,1e-08,4568.7,4568.6,22.12458955]
[1756330225873,1e-08,4568.7,4568.6,22.52310101]
[1756330226078,1e-08,4568.7,4568.6,26.85210001]
[1756330226383,1e-08,4568.7,4568.6,27.77566473]
[1756330227444,1e-08,4568.7,4568.6,23.97066473]
[1756330227683,1e-08,4568.7,4568.6,12.45711907]
[1756330228054,1e-08,4568.7,4568.6,6.46426472]
[1756330228379,1e-08,4568.7,4568.6,13.24911907]
[1756330228581,1e-08,4568.7,4568.6,11.06026472]
[1756330229715,1e-08,4568.7,4568.6,13.24911907]
[1756330230428,1e-08,4568.7,4568.6,11.06026472]
[1756330230710,1e-08,4568.7,4568.6,12.81281907]
[1756330231825,1e-08,4568.7,4568.6,10.62296472]
[1756330232388,1e-08,4568.7,4568.6,9.00881907]
[1756330232589,1e-08,4568.7,4568.6,12.81181907]
[1756330234344,1e-08,4568.7,4568.6,13.24811907]
[1756330235708,1e-08,4568.7,4568.6,9.00881907]
[1756330235907,1e-08,4568.7,4568.6,12.81181907]
[1756330236289,1e-08,4568.7,4568.6,13.24811907]
[1756330237891,0.02,4569.8,4568.7,5.98080644]
[1756330238121,0.02,4569.8,4568.7,8.56036162]
[1756330238296,0.02,4569.8,4568.7,8.87116162]
[1756330238721,0.002,4569.2,4568.7,8.87116162]
[1756330239622,0.002,4569.2,4569.1,5.98061482]
[1756330239821,0.002,4569.7,4569.1,9.78261482]
[1756330240013,0.002,4569.7,4569.2,6.74955258]
[1756330240207,0.002,4569.7,4569.2,7.30862969]
[1756330240594,0.002,4569.7,4569.2,4.68376277]
[1756330240903,0.002,4570.5,4570.4,2.97999229]
[1756330241101,0.002,4572.4,4570.9,5.97975295]
[1756330241301,0.002,4572.4,4570.9,10.09155295]
[1756330241516,0.002,4572.4,4570.9,11.86539068]
[1756330241826,0.47,4572.0,4570.9,11.68017368]
[1756330242025,0.002,4572.4,4572.1,2.18713804]
[1756330242230,0.002,4572.4,4572.2,4.593]
[1756330242437,0.002,4572.4,4572.3,2.97908308]
[1756330242793,0.3,4572.4,4572.3,2.97908308]
[1756330242993,0.77,4572.4,4572.3,2.97908308]
[1756330243622,0.77,4572.4,4572.3,0.792]
[1756330244718,0.002,4572.4,4572.3,3.97885579]
[1756330244917,0.002,4572.4,4572.3,7.08845579]
[1756330245831,0.002,4572.4,4572.3,6.77765579]
[1756330246034,0.77,4572.4,4572.3,7.592]
[1756330246992,0.77,4572.4,4572.3,4.592]
[1756330247198,0.77,4572.4,4572.3,4.591]
[1756330248912,0.002,4572.4,4572.3,6.77808308]
[1756330249126,0.002,4572.4,4572.3,7.98600892]
[1756330250316,0.002,4572.4,4572.3,5.48752584]
[1756330250544,0.3183,4572.4,4572.3,4.591]
[1756330250746,0.3183,4572.4,4572.3,6.77808308]
[1756330251042,0.3183,4572.4,4572.3,4.591]
[1756330251451,0.7537,4572.4,4572.3,4.591]
[1756330252031,0.7537,4572.4,4572.3,6.77808308]
[1756330252262,0.3183,4572.4,4572.3,6.77808308]
[1756330252963,0.3183,4572.4,4572.3,4.59]
[1756330253132,0.7537,4572.4,4572.3,4.59]
[1756330254148,0.7537,4572.4,4572.3,0.792]
[1756330254348,0.7537,4572.4,4572.3,4.59]
[1756330254559,0.7537,4572.4,4572.3,0.792]
[1756330254759,0.7537,4572.4,4572.3,4.59]
[1756330255676,0.7537,4572.4,4572.3,0.792]
[1756330255874,0.7537,4572.4,4572.3,3.798]
[1756330256074,1.26666164,4572.4,4572.3,3.798]
[1756330256273,1.26666164,4572.4,4572.3,4.59]
[1756330256575,1.37626164,4572.4,4572.3,4.59]
[1756330256959,0.8633,4572.4,4572.3,4.59]
[1756330258160,0.8633,4572.4,4572.3,4.589]
[1756330258764,3.05033525,4572.4,4572.3,0.792]
[1756330258948,3.05033525,4572.4,4572.3,4.589]
[1756330260382,3.05033525,4572.4,4572.3,0.792]
[1756330260547,3.57426492,4572.4,4572.3,0.792]
[1756330261489,1.40920363,4572.4,4571.1,1.682]
[1756330261663,2.18755468,4571.4,4571.1,1.682]
[1756330261983,2.62296152,4571.3,4571.2,1.986]
[1756330262185,0.7517,4571.3,4571.2,1.986]
[1756330262483,0.8613,4571.3,4571.2,1.986]
[1756330262884,3.04886152,4571.3,4571.2,3.796]
[1756330263083,0.8613,4571.3,4571.2,3.796]
[1756330263462,0.002,4572.4,4571.3,0.792]
[1756330263783,0.002,4572.4,4571.9,0.792]
[1756330263963,0.002,4572.4,4572.1,0.792]
[1756330264450,0.002,4572.4,4572.1,2.97916491]
[1756330264650,0.002,4572.4,4572.1,0.792]
[1756330264887,0.002,4572.4,4572.1,2.97916986]
[1756330265287,0.002,4572.4,4572.3,3.29048308]
[1756330265451,0.002,4572.4,4572.3,7.08648308]
[1756330265648,0.002,4572.4,4572.3,10.53128308]
[1756330268881,0.3183,4572.4,4572.3,4.588]
[1756330269088,0.002,4572.4,4572.3,3.796]
[1756330269291,0.002,4572.4,4572.3,4.588]
[1756330269715,0.3183,4572.4,4572.3,4.588]
[1756330270023,0.7537,4572.4,4572.3,0.792]
[1756330270181,0.7537,4572.4,4572.0,1.682]
[1756330270516,0.4354,4572.3,4572.2,0.792]
[1756330270827,0.4354,4572.3,4572.2,3.795]
[1756330271112,0.7517,4572.3,4572.2,3.795]
[1756330272087,2.18713092,4572.2,4572.0,1.682]
[1756330272288,0.7517,4572.1,4572.0,1.682]
[1756330272489,0.7517,4572.1,4572.0,5.477]
[1756330272737,0.7517,4572.1,4571.0,0.001]
[1756330273032,0.02197396,4572.0,4571.1,3.795]
[1756330273214,0.3163,4571.2,4571.0,0.001]
[1756330273416,0.3163,4571.2,4571.1,4.587]
[1756330273592,0.7517,4571.2,4571.1,4.587]
[1756330273791,0.7517,4571.2,4571.1,3.795]
[1756330273792,0.8613,4571.2,4571.1,3.795]
[1756330274438,0.8613,4571.2,4571.1,4.587]
[1756330276948,0.1096,4571.2,4571.1,7.05975723]
[1756330277106,0.1096,4572.1,4571.4,0.792]
[1756330277303,0.1096,4572.1,4571.3,3.0]
[1756330277304,0.002,4572.3,4572.2,2.97913092]
[1756330277621,0.002,4572.3,4572.2,6.77413092]
[1756330277809,0.002,4572.3,4572.2,10.49723092]
[1756330279140,0.002,4572.3,4572.2,10.60683092]
[1756330279531,0.3114,4572.3,4572.2,4.6956]
[1756330279863,0.8564,4572.3,4572.2,3.794]
[1756330280030,3.04348308,4572.3,4572.2,4.586]
[1756330280352,0.8564,4572.3,4572.2,3.794]
[1756330280648,0.1116,4572.3,4572.2,4.0791]
[1756330280854,0.002,4572.3,4572.2,5.55681]
[1756330281054,0.002,4572.3,4572.2,4.9807]
[1756330281419,0.002,4572.3,4572.2,7.16783092]
[1756330281826,0.002,4572.3,4572.2,10.60583092]
[1756330282058,0.002,4572.3,4572.2,6.37383092]
[1756330282353,0.002,4572.3,4572.2,10.16783092]
[1756330282523,0.002,4572.3,4572.2,11.61533417]
[1756330282719,0.002,4572.3,4572.2,7.82133417]
[1756330282924,0.002,4572.3,4572.2,9.88273092]
[1756330283124,0.3114,4572.3,4572.2,3.792]
[1756330283325,0.3114,4572.3,4572.2,7.586]
[1756330283556,0.3114,4572.3,4572.2,4.586]
[1756330283759,0.7468,4572.3,4572.2,4.586]
[1756330284060,0.002,4572.3,4572.2,10.69599092]
[1756330284229,0.002,4572.3,4572.2,11.24359092]
[1756330289469,0.002,4572.5,4572.2,11.24359092]
[1756330289470,0.002,4572.5,4572.3,5.97908308]
[1756330289672,0.022,4572.8,4572.7,5.97889177]
[1756330289873,0.022,4572.8,4572.7,10.65488095]
[1756330290184,0.022,4572.8,4572.7,11.20248095]
[1756330292058,0.022,4572.8,4572.7,10.76448095]
[1756330292587,0.022,4572.8,4572.7,11.20248095]
[1756330293303,1e-08,4572.8,4572.7,11.20248095]
[1756330294169,0.02,4573.8,4573.2,2.97865267]
[1756330294518,0.4354,4575.4,4574.6,0.792]
[1756330294799,0.4354,4575.4,4574.7,11.45193568]
[1756330295008,0.4354,4575.4,4574.7,11.56153568]
[1756330297706,0.3294,4574.8,4574.7,11.56153568]
[1756330298064,0.7648,4574.8,4574.7,5.5836]
[1756330298269,0.7648,4574.8,4574.7,9.3746]
[1756330298592,0.7648,4574.8,4574.7,3.9006]
[1756330298787,0.7648,4574.8,4573.6,14.43784666]
[1756330298988,0.1096,4574.5,4573.9,0.1096]
[1756330299175,0.3294,4574.8,4573.2,2.18664027]
[1756330299176,2.18622242,4574.1,4574.0,3.791]
[1756330299381,2.93102242,4574.1,4574.0,3.791]
[1756330299594,2.18633565,4573.9,4573.2,3.1096]
[1756330299791,2.2959786,4573.8,4573.3,3.791]
[1756330299991,0.3094,4573.4,4573.3,4.583]
[1756330300504,0.7448,4573.4,4573.3,4.583]
[1756330301111,0.4354,4574.1,4573.5,0.792]
[1756330301313,0.4354,4575.0,4573.8,0.792]
[1756330301467,0.4354,4575.0,4574.5,0.1096]
[1756330301670,0.4354,4574.7,4574.6,4.583]
[1756330301885,2.93073568,4574.7,4574.6,0.792]
[1756330302080,0.7448,4574.7,4574.6,0.792]
[1756330302282,2.93073568,4574.7,4574.6,0.792]
[1756330303674,0.8544,4574.7,4574.6,0.792]
[1756330304003,3.04033568,4574.7,4574.6,4.583]
[1756330304227,0.8544,4574.7,4574.6,4.583]
[1756330304429,3.04033568,4574.7,4574.6,4.583]
[1756330304652,3.56495353,4574.7,4574.6,0.792]
[1756330304807,3.45535353,4574.7,4574.6,0.792]
[1756330305012,3.56495353,4574.7,4574.6,0.792]
[1756330305408,0.8544,4574.7,4574.6,0.792]
[1756330306256,0.3094,4574.7,4574.6,0.792]
[1756330306699,0.3114,4574.7,4574.6,0.792]
[1756330307394,0.002,4574.7,4574.6,0.792]
[1756330307594,0.2905,4574.7,4574.6,0.792]
[1756330307826,0.7584,4574.7,4574.6,0.792]
[1756330309699,0.2905,4574.7,4574.6,0.792]
[1756330310844,0.2905,4574.7,4574.6,7.42207151]
[1756330310845,0.002,4574.7,4574.6,7.42207151]
[1756330317037,0.002,4574.7,4574.6,7.53167151]
[1756330317831,0.002,4574.7,4574.6,7.08657151]
[1756330318034,0.002,4574.7,4574.6,10.87557151]
[1756330320299,0.2905,4574.7,4574.6,0.80298804]
[1756330320499,0.7584,4574.7,4574.6,3.8976]
[1756330320791,0.7584,4574.7,4574.6,9.87558347]
[1756330321000,0.002,4574.7,4574.6,9.87558347]
[1756330321205,0.002,4574.7,4574.6,10.18118347]
[1756330321405,0.002,4575.2,4575.0,0.792]
[1756330321680,0.002,4575.7,4575.6,5.97750572]
[1756330321846,0.002,4575.7,4575.6,26.18995238]
[1756330322481,0.002,4575.7,4575.6,26.63505238]
[1756330323810,0.4679,4577.1,4576.6,0.792]
[1756330324087,0.02,4577.8,4576.7,8.44598044]
[1756330324311,0.4679,4577.5,4576.7,8.75158044]
[1756330324489,0.02,4577.8,4576.7,11.75158044]
[1756330324990,0.4679,4577.5,4576.7,11.44498044]
[1756330325178,0.4679,4577.2,4576.7,11.44498044]
[1756330325380,0.4879,4577.8,4576.7,11.75058044]
[1756330325550,0.02,4577.8,4576.7,12.93189162]
[1756330325754,0.4679,4577.5,4576.7,12.93189162]
[1756330325978,0.4679,4577.2,4576.7,12.62629162]
[1756330326185,0.4879,4577.8,4576.7,12.93189162]
[1756330327893,0.02,4577.8,4576.7,13.37699162]
[1756330329217,0.3085,4576.8,4576.7,8.83929162]
[1756330329508,0.3085,4576.8,4576.7,12.62529162]
[1756330329856,0.3085,4576.8,4576.7,8.83929162]
[1756330330096,0.3085,4576.8,4576.7,12.62529162]
[1756330330097,0.7764,4576.8,4576.7,12.62529162]
[1756330330457,0.7764,4576.8,4574.7,1.4214065]
[1756330330672,2.98332964,4576.8,4575.5,2.18554701]
[1756330330868,0.4679,4576.7,4574.8,0.02]
[1756330331202,0.2885,4574.9,4574.8,2.2058879]
[1756330331404,0.7564,4574.9,4574.8,3.806]
[1756330331699,0.7564,4574.9,4574.8,4.7076]
[1756330332001,0.7564,4574.9,4574.8,6.9156]
[1756330332406,0.7564,4574.9,4574.8,0.02]
[1756330332567,0.7564,4574.9,4574.8,3.806]
[1756330332768,2.94224012,4574.9,4574.8,4.598]
[1756330332969,2.94224012,4574.9,4574.8,3.806]
[1756330333174,2.94224012,4574.9,4574.8,4.598]
[1756330333574,2.94224012,4574.9,4574.8,3.806]
[1756330334274,2.94224012,4574.9,4574.8,0.02]
[1756330334691,2.94224012,4574.9,4574.8,0.812]
[1756330335790,3.46599917,4574.9,4574.8,0.02]
[1756330336096,3.48797313,4574.9,4574.8,0.02]
[1756330336582,2.1862455,4574.1,4573.8,0.021]
[1756330336986,0.2883,4573.9,4573.8,0.021]
[1756330337309,2.76791257,4573.9,4573.8,0.021]
[1756330337606,3.22631257,4573.9,4573.8,0.021]
[1756330338717,2.93301802,4573.9,4573.8,0.021]
[1756330341585,6.72001802,4573.9,4573.8,0.021]
[1756330341987,2.93301802,4573.9,4573.8,0.021]
[1756330342187,6.74199198,4573.9,4573.8,0.021]
[1756330342386,6.72001802,4573.9,4573.8,0.021]
[1756330342589,7.77874437,4573.9,4573.8,0.021]
[1756330342788,3.99174437,4573.9,4573.8,0.021]
[1756330342994,7.80071833,4573.9,4573.8,0.021]
[1756330343192,7.77874437,4573.9,4573.8,0.021]
[1756330344901,3.99174437,4573.9,4573.8,0.021]
[1756330345214,7.80071833,4573.9,4573.8,0.021]
[1756330345406,7.77874437,4573.9,4573.8,0.021]
[1756330345995,4.10134437,4573.9,4573.8,0.021]
[1756330346981,4.12331833,4573.9,4573.8,0.021]
[1756330347592,7.91031833,4573.9,4573.8,0.021]
[1756330347819,7.88834437,4573.9,4573.8,0.021]
[1756330348987,6.26161802,4573.9,4573.8,0.021]
[1756330349198,6.37121802,4573.9,4573.8,0.021]
[1756330349909,0.1096,4573.9,4573.8,1.116]
[1756330350801,2.29591802,4573.9,4573.8,1.116]
[1756330351702,0.1096,4573.9,4573.8,0.813]
[1756330351995,2.18627384,4574.0,4573.9,0.792]
[1756330352187,2.29587384,4574.0,4573.9,0.792]
[1756330352583,2.18631802,4573.9,4573.8,0.021]
[1756330352824,3.14373706,4573.9,4573.8,0.021]
[1756330353013,3.43203706,4573.9,4573.8,0.021]
[1756330354220,7.21903706,4573.9,4573.8,0.021]
[1756330354427,7.1970631,4573.9,4573.8,0.021]
[1756330360836,7.3066631,4573.9,4573.8,0.021]
[1756330362997,3.5196631,4573.9,4573.8,0.021]
[1756330363192,7.32763706,4573.9,4573.8,0.021]
[1756330363397,3.5196631,4573.9,4573.8,0.021]
[1756330363597,7.32763706,4573.9,4573.8,0.021]
[1756330363831,7.3056631,4573.9,4573.8,0.021]
[1756330365640,17.4556631,4573.9,4573.8,1e-08]
[1756330369137,17.7979004,4573.9,4573.8,1e-08]
[1756330370236,2.18693959,4572.6,4572.5,1e-08]
[1756330370545,7.08763355,4572.6,4572.5,1e-08]
[1756330370744,8.27163355,4572.6,4572.5,1e-08]
[1756330371040,8.74033355,4572.6,4572.5,1e-08]
[1756330371707,8.27163355,4572.6,4572.5,1e-08]
[1756330373010,4.48563355,4572.6,4572.5,1e-08]
[1756330373344,8.27163355,4572.6,4572.5,1e-08]
[1756330373847,11.74033355,4572.6,4572.5,1e-08]
[1756330374549,12.08265929,4572.6,4572.5,1e-08]
[1756330375954,11.21595929,4572.6,4572.5,1e-08]
[1756330376249,10.87363355,4572.6,4572.5,1e-08]
[1756330376420,7.65493959,4572.6,4572.5,0.30670001]
[1756330380243,7.65493959,4572.6,4572.5,1e-08]
[1756330380442,7.65493959,4572.6,4572.5,0.30670001]
[1756330382231,7.65493959,4572.6,4572.5,1e-08]
[1756330382717,7.94333959,4572.6,4572.5,1e-08]
[1756330382918,9.25636066,4572.6,4572.5,1e-08]
[1756330384332,8.96796066,4572.6,4572.5,1e-08]